{"text_format":"3","workbook":"xlsx","n_sheets":1,"sheets":["Feuille de temps annuelle"],"not_rendered":{"defined_names":2},"read":"whole","date_system":"1900"}

{"sheet":"Feuille de temps annuelle","index":0,"n_rows":140,"n_cols":12,"rows_kept":140,"merged":[[0,1,1,11],[2,6,2,7],[2,8,2,9],[5,1,5,11],[15,3,15,4],[26,3,26,4],[37,3,37,4],[39,1,39,11],[49,3,49,4],[60,3,60,4],[71,3,71,4],[73,1,73,11],[83,3,83,4],[94,3,94,4],[105,3,105,4],[107,1,107,11],[117,3,117,4],[128,3,128,4],[139,3,139,4]]}
[null,"Feuille de présence employé"]
[]
[null,"Nom de l’employé :",null,"Courriel :",null,null,"Totaux de l’année à ce jour :"]
[null,"Responsable :",null,"Téléphone :",null,null,"Heures normales :",{"$f":"SUM(C16,C27,C38,C50,C61,C72,C84,C95,C106,C118,C129,C140)","v":0},"Heures supplémentaires :",{"$f":"SUM(F16,F27,F38,F50,F61,F72,F84,F95,F106,F118,F129,F140)","v":0},"Total :",{"$f":"SUM(H4,J4)","v":0}]
[]
[null,"Janvier, février, mars      Feuille de présence employé : Heures quotidiennes, hebdomadaires, mensuelles, annuelles"]
[null,"Janvier","Semaine 1","Heures supplémentaires","Semaine 2","Heures supplémentaires ","Semaine 3","Heures supplémentaires  ","Semaine 4","Heures supplémentaires   ","Semaine 5","Heures supplémentaires    "]
[null,"Lundi"]
[null,"Mardi"]
[null,"Mercredi"]
[null,"Jeudi"]
[null,"Vendredi"]
[null,"Samedi"]
[null,"Dimanche"]
[null,"Total des heures hebdomadaires",{"$f":"SUBTOTAL(109,Janvier[Semaine 1])","v":0},{"$f":"SUBTOTAL(109,Janvier[Heures supplémentaires])","v":0},{"$f":"SUBTOTAL(109,Janvier[Semaine 2])","v":0},{"$f":"SUBTOTAL(109,Janvier[[Heures supplémentaires ]])","v":0},{"$f":"SUBTOTAL(109,Janvier[Semaine 3])","v":0},{"$f":"SUBTOTAL(109,Janvier[[Heures supplémentaires  ]])","v":0},{"$f":"SUBTOTAL(109,Janvier[Semaine 4])","v":0},{"$f":"SUBTOTAL(109,Janvier[[Heures supplémentaires   ]])","v":0},{"$f":"SUBTOTAL(109,Janvier[Semaine 5])","v":0},{"$f":"SUBTOTAL(109,Janvier[[Heures supplémentaires    ]])","v":0}]
[null,"Total janvier : Heures normales",{"$f":"SUM(Janvier[[#Totals],[Semaine 1]],Janvier[[#Totals],[Semaine 2]],Janvier[[#Totals],[Semaine 3]],Janvier[[#Totals],[Semaine 4]],Janvier[[#Totals],[Semaine 5]])","v":0},"Total janvier : Heures supplémentaires",null,{"$f":"SUM(Janvier[[#Totals],[Heures supplémentaires]],Janvier[[#Totals],[Heures supplémentaires ]],Janvier[[#Totals],[Heures supplémentaires  ]],Janvier[[#Totals],[Heures supplémentaires   ]],Janvier[[#Totals],[Heures supplémentaires    ]])","v":0}]
[]
[null,"Février","Semaine 1","Heures supplémentaires","Semaine 2","Heures supplémentaires ","Semaine 3","Heures supplémentaires  ","Semaine 4","Heures supplémentaires   ","Semaine 5","Heures supplémentaires    "]
[null,"Lundi"]
[null,"Mardi"]
[null,"Mercredi"]
[null,"Jeudi"]
[null,"Vendredi"]
[null,"Samedi"]
[null,"Dimanche"]
[null,"Total des heures hebdomadaires",{"$f":"SUBTOTAL(109,Février[Semaine 1])","v":0},{"$f":"SUBTOTAL(109,Février[Heures supplémentaires])","v":0},{"$f":"SUBTOTAL(109,Février[Semaine 2])","v":0},{"$f":"SUBTOTAL(109,Février[[Heures supplémentaires ]])","v":0},{"$f":"SUBTOTAL(109,Février[Semaine 3])","v":0},{"$f":"SUBTOTAL(109,Février[[Heures supplémentaires  ]])","v":0},{"$f":"SUBTOTAL(109,Février[Semaine 4])","v":0},{"$f":"SUBTOTAL(109,Février[[Heures supplémentaires   ]])","v":0},{"$f":"SUBTOTAL(109,Février[Semaine 5])","v":0},{"$f":"SUBTOTAL(109,Février[[Heures supplémentaires    ]])","v":0}]
[null,"Total février : Heures normales",{"$f":"SUM(Février[[#Totals],[Semaine 1]],Février[[#Totals],[Semaine 2]],Février[[#Totals],[Semaine 3]],Février[[#Totals],[Semaine 4]],Février[[#Totals],[Semaine 5]])","v":0},"Total février : Heures supplémentaires",null,{"$f":"SUM(Février[[#Totals],[Heures supplémentaires]],Février[[#Totals],[Heures supplémentaires ]],Février[[#Totals],[Heures supplémentaires  ]],Février[[#Totals],[Heures supplémentaires   ]],Février[[#Totals],[Heures supplémentaires    ]])","v":0}]
[]
[null,"Mars","Semaine 1","Heures supplémentaires","Semaine 2","Heures supplémentaires ","Semaine 3","Heures supplémentaires  ","Semaine 4","Heures supplémentaires   ","Semaine 5","Heures supplémentaires    "]
[null,"Lundi"]
[null,"Mardi"]
[null,"Mercredi"]
[null,"Jeudi"]
[null,"Vendredi"]
[null,"Samedi"]
[null,"Dimanche"]
[null,"Total des heures hebdomadaires",{"$f":"SUBTOTAL(109,Mars[Semaine 1])","v":0},{"$f":"SUBTOTAL(109,Mars[Heures supplémentaires])","v":0},{"$f":"SUBTOTAL(109,Mars[Semaine 2])","v":0},{"$f":"SUBTOTAL(109,Mars[[Heures supplémentaires ]])","v":0},{"$f":"SUBTOTAL(109,Mars[Semaine 3])","v":0},{"$f":"SUBTOTAL(109,Mars[[Heures supplémentaires  ]])","v":0},{"$f":"SUBTOTAL(109,Mars[Semaine 4])","v":0},{"$f":"SUBTOTAL(109,Mars[[Heures supplémentaires   ]])","v":0},{"$f":"SUBTOTAL(109,Mars[Semaine 5])","v":0},{"$f":"SUBTOTAL(109,Mars[[Heures supplémentaires    ]])","v":0}]
[null,"Total mars : Heures normales",{"$f":"SUM(Mars[[#Totals],[Semaine 1]],Mars[[#Totals],[Semaine 2]],Mars[[#Totals],[Semaine 3]],Mars[[#Totals],[Semaine 4]],Mars[[#Totals],[Semaine 5]])","v":0},"Total mars : Heures supplémentaires",null,{"$f":"SUM(Mars[[#Totals],[Heures supplémentaires]],Mars[[#Totals],[Heures supplémentaires ]],Mars[[#Totals],[Heures supplémentaires  ]],Mars[[#Totals],[Heures supplémentaires   ]],Mars[[#Totals],[Heures supplémentaires    ]])","v":0}]
[]
[null,"Avril, mai, juin      Feuille de présence employé : Heures quotidiennes, hebdomadaires, mensuelles, annuelles"]
[null,"Avril","Semaine 1","Heures supplémentaires","Semaine 2","Heures supplémentaires ","Semaine 3","Heures supplémentaires  ","Semaine 4","Heures supplémentaires   ","Semaine 5","Heures supplémentaires    "]
[null,"Lundi"]
[null,"Mardi"]
[null,"Mercredi"]
[null,"Jeudi"]
[null,"Vendredi"]
[null,"Samedi"]
[null,"Dimanche"]
[null,"Total des heures hebdomadaires",{"$f":"SUBTOTAL(109,Avril[Semaine 1])","v":0},{"$f":"SUBTOTAL(109,Avril[Heures supplémentaires])","v":0},{"$f":"SUBTOTAL(109,Avril[Semaine 2])","v":0},{"$f":"SUBTOTAL(109,Avril[[Heures supplémentaires ]])","v":0},{"$f":"SUBTOTAL(109,Avril[Semaine 3])","v":0},{"$f":"SUBTOTAL(109,Avril[[Heures supplémentaires  ]])","v":0},{"$f":"SUBTOTAL(109,Avril[Semaine 4])","v":0},{"$f":"SUBTOTAL(109,Avril[[Heures supplémentaires   ]])","v":0},{"$f":"SUBTOTAL(109,Avril[Semaine 5])","v":0},{"$f":"SUBTOTAL(109,Avril[[Heures supplémentaires    ]])","v":0}]
[null,"Total avril : Heures normales",{"$f":"SUM(Avril[[#Totals],[Semaine 1]],Avril[[#Totals],[Semaine 2]],Avril[[#Totals],[Semaine 3]],Avril[[#Totals],[Semaine 4]],Avril[[#Totals],[Semaine 5]])","v":0},"Total avril : Heures supplémentaires",null,{"$f":"SUM(Avril[[#Totals],[Heures supplémentaires]],Avril[[#Totals],[Heures supplémentaires ]],Avril[[#Totals],[Heures supplémentaires  ]],Avril[[#Totals],[Heures supplémentaires   ]],Avril[[#Totals],[Heures supplémentaires    ]])","v":0}]
[]
[null,"Mai","Semaine 1","Heures supplémentaires","Semaine 2","Heures supplémentaires ","Semaine 3","Heures supplémentaires  ","Semaine 4","Heures supplémentaires   ","Semaine 5","Heures supplémentaires    "]
[null,"Lundi"]
[null,"Mardi"]
[null,"Mercredi"]
[null,"Jeudi"]
[null,"Vendredi"]
[null,"Samedi"]
[null,"Dimanche"]
[null,"Total des heures hebdomadaires",{"$f":"SUBTOTAL(109,Mai[Semaine 1])","v":0},{"$f":"SUBTOTAL(109,Mai[Heures supplémentaires])","v":0},{"$f":"SUBTOTAL(109,Mai[Semaine 2])","v":0},{"$f":"SUBTOTAL(109,Mai[[Heures supplémentaires ]])","v":0},{"$f":"SUBTOTAL(109,Mai[Semaine 3])","v":0},{"$f":"SUBTOTAL(109,Mai[[Heures supplémentaires  ]])","v":0},{"$f":"SUBTOTAL(109,Mai[Semaine 4])","v":0},{"$f":"SUBTOTAL(109,Mai[[Heures supplémentaires   ]])","v":0},{"$f":"SUBTOTAL(109,Mai[Semaine 5])","v":0},{"$f":"SUBTOTAL(109,Mai[[Heures supplémentaires    ]])","v":0}]
[null,"Total mai : Heures normales",{"$f":"SUM(Mai[[#Totals],[Semaine 1]],Mai[[#Totals],[Semaine 2]],Mai[[#Totals],[Semaine 3]],Mai[[#Totals],[Semaine 4]],Mai[[#Totals],[Semaine 5]])","v":0},"Total mai : Heures supplémentaires",null,{"$f":"SUM(Mai[[#Totals],[Heures supplémentaires]],Mai[[#Totals],[Heures supplémentaires ]],Mai[[#Totals],[Heures supplémentaires  ]],Mai[[#Totals],[Heures supplémentaires   ]],Mai[[#Totals],[Heures supplémentaires    ]])","v":0}]
[]
[null,"Juin","Semaine 1","Heures supplémentaires","Semaine 2","Heures supplémentaires ","Semaine 3","Heures supplémentaires  ","Semaine 4","Heures supplémentaires   ","Semaine 5","Heures supplémentaires    "]
[null,"Lundi"]
[null,"Mardi"]
[null,"Mercredi"]
[null,"Jeudi"]
[null,"Vendredi"]
[null,"Samedi"]
[null,"Dimanche"]
[null,"Total des heures hebdomadaires",{"$f":"SUBTOTAL(109,Juin[Semaine 1])","v":0},{"$f":"SUBTOTAL(109,Juin[Heures supplémentaires])","v":0},{"$f":"SUBTOTAL(109,Juin[Semaine 2])","v":0},{"$f":"SUBTOTAL(109,Juin[[Heures supplémentaires ]])","v":0},{"$f":"SUBTOTAL(109,Juin[Semaine 3])","v":0},{"$f":"SUBTOTAL(109,Juin[[Heures supplémentaires  ]])","v":0},{"$f":"SUBTOTAL(109,Juin[Semaine 4])","v":0},{"$f":"SUBTOTAL(109,Juin[[Heures supplémentaires   ]])","v":0},{"$f":"SUBTOTAL(109,Juin[Semaine 5])","v":0},{"$f":"SUBTOTAL(109,Juin[[Heures supplémentaires    ]])","v":0}]
[null,"Total juin : Heures normales",{"$f":"SUM(Juin[[#Totals],[Semaine 1]],Juin[[#Totals],[Semaine 2]],Juin[[#Totals],[Semaine 3]],Juin[[#Totals],[Semaine 4]],Juin[[#Totals],[Semaine 5]])","v":0},"Total juin : Heures supplémentaires",null,{"$f":"SUM(Juin[[#Totals],[Heures supplémentaires]],Juin[[#Totals],[Heures supplémentaires ]],Juin[[#Totals],[Heures supplémentaires  ]],Juin[[#Totals],[Heures supplémentaires   ]],Juin[[#Totals],[Heures supplémentaires    ]])","v":0}]
[]
[null,"Juillet, août, septembre      Feuille de présence employé : Heures quotidiennes, hebdomadaires, mensuelles, annuelles"]
[null,"Juillet","Semaine 1","Heures supplémentaires","Semaine 2","Heures supplémentaires ","Semaine 3","Heures supplémentaires  ","Semaine 4","Heures supplémentaires   ","Semaine 5","Heures supplémentaires    "]
[null,"Lundi"]
[null,"Mardi"]
[null,"Mercredi"]
[null,"Jeudi"]
[null,"Vendredi"]
[null,"Samedi"]
[null,"Dimanche"]
[null,"Total des heures hebdomadaires",{"$f":"SUBTOTAL(109,Juillet[Semaine 1])","v":0},{"$f":"SUBTOTAL(109,Juillet[Heures supplémentaires])","v":0},{"$f":"SUBTOTAL(109,Juillet[Semaine 2])","v":0},{"$f":"SUBTOTAL(109,Juillet[[Heures supplémentaires ]])","v":0},{"$f":"SUBTOTAL(109,Juillet[Semaine 3])","v":0},{"$f":"SUBTOTAL(109,Juillet[[Heures supplémentaires  ]])","v":0},{"$f":"SUBTOTAL(109,Juillet[Semaine 4])","v":0},{"$f":"SUBTOTAL(109,Juillet[[Heures supplémentaires   ]])","v":0},{"$f":"SUBTOTAL(109,Juillet[Semaine 5])","v":0},{"$f":"SUBTOTAL(109,Juillet[[Heures supplémentaires    ]])","v":0}]
[null,"Total juillet : Heures normales",{"$f":"SUM(Juillet[[#Totals],[Semaine 1]],Juillet[[#Totals],[Semaine 2]],Juillet[[#Totals],[Semaine 3]],Juillet[[#Totals],[Semaine 4]],Juillet[[#Totals],[Semaine 5]])","v":0},"Total juillet : Heures supplémentaires",null,{"$f":"SUM(Juillet[[#Totals],[Heures supplémentaires]],Juillet[[#Totals],[Heures supplémentaires ]],Juillet[[#Totals],[Heures supplémentaires  ]],Juillet[[#Totals],[Heures supplémentaires   ]],Juillet[[#Totals],[Heures supplémentaires    ]])","v":0}]
[]
[null,"Août","Semaine 1","Heures supplémentaires","Semaine 2","Heures supplémentaires ","Semaine 3","Heures supplémentaires  ","Semaine 4","Heures supplémentaires   ","Semaine 5","Heures supplémentaires    "]
[null,"Lundi"]
[null,"Mardi"]
[null,"Mercredi"]
[null,"Jeudi"]
[null,"Vendredi"]
[null,"Samedi"]
[null,"Dimanche"]
[null,"Total des heures hebdomadaires",{"$f":"SUBTOTAL(109,Août[Semaine 1])","v":0},{"$f":"SUBTOTAL(109,Août[Heures supplémentaires])","v":0},{"$f":"SUBTOTAL(109,Août[Semaine 2])","v":0},{"$f":"SUBTOTAL(109,Août[[Heures supplémentaires ]])","v":0},{"$f":"SUBTOTAL(109,Août[Semaine 3])","v":0},{"$f":"SUBTOTAL(109,Août[[Heures supplémentaires  ]])","v":0},{"$f":"SUBTOTAL(109,Août[Semaine 4])","v":0},{"$f":"SUBTOTAL(109,Août[[Heures supplémentaires   ]])","v":0},{"$f":"SUBTOTAL(109,Août[Semaine 5])","v":0},{"$f":"SUBTOTAL(109,Août[[Heures supplémentaires    ]])","v":0}]
[null,"Total août : Heures normales",{"$f":"SUM(Août[[#Totals],[Semaine 1]],Août[[#Totals],[Semaine 2]],Août[[#Totals],[Semaine 3]],Août[[#Totals],[Semaine 4]],Août[[#Totals],[Semaine 5]])","v":0},"Total août : Heures supplémentaires",null,{"$f":"SUM(Août[[#Totals],[Heures supplémentaires]],Août[[#Totals],[Heures supplémentaires ]],Août[[#Totals],[Heures supplémentaires  ]],Août[[#Totals],[Heures supplémentaires   ]],Août[[#Totals],[Heures supplémentaires    ]])","v":0}]
[]
[null,"Septembre","Semaine 1","Heures supplémentaires","Semaine 2","Heures supplémentaires ","Semaine 3","Heures supplémentaires  ","Semaine 4","Heures supplémentaires   ","Semaine 5","Heures supplémentaires    "]
[null,"Lundi"]
[null,"Mardi"]
[null,"Mercredi"]
[null,"Jeudi"]
[null,"Vendredi"]
[null,"Samedi"]
[null,"Dimanche"]
[null,"Total des heures hebdomadaires",{"$f":"SUBTOTAL(109,Septembre[Semaine 1])","v":0},{"$f":"SUBTOTAL(109,Septembre[Heures supplémentaires])","v":0},{"$f":"SUBTOTAL(109,Septembre[Semaine 2])","v":0},{"$f":"SUBTOTAL(109,Septembre[[Heures supplémentaires ]])","v":0},{"$f":"SUBTOTAL(109,Septembre[Semaine 3])","v":0},{"$f":"SUBTOTAL(109,Septembre[[Heures supplémentaires  ]])","v":0},{"$f":"SUBTOTAL(109,Septembre[Semaine 4])","v":0},{"$f":"SUBTOTAL(109,Septembre[[Heures supplémentaires   ]])","v":0},{"$f":"SUBTOTAL(109,Septembre[Semaine 5])","v":0},{"$f":"SUBTOTAL(109,Septembre[[Heures supplémentaires    ]])","v":0}]
[null,"Total septembre : Heures normales",{"$f":"SUM(Septembre[[#Totals],[Semaine 1]],Septembre[[#Totals],[Semaine 2]],Septembre[[#Totals],[Semaine 3]],Septembre[[#Totals],[Semaine 4]],Septembre[[#Totals],[Semaine 5]])","v":0},"Total septembre : Heures supplémentaires",null,{"$f":"SUM(Septembre[[#Totals],[Heures supplémentaires]],Septembre[[#Totals],[Heures supplémentaires ]],Septembre[[#Totals],[Heures supplémentaires  ]],Septembre[[#Totals],[Heures supplémentaires   ]],Septembre[[#Totals],[Heures supplémentaires    ]])","v":0}]
[]
[null,"Octobre, novembre, décembre      Feuille de présence employé : Heures quotidiennes, hebdomadaires, mensuelles, annuelles"]
[null,"Octobre","Semaine 1","Heures supplémentaires","Semaine 2","Heures supplémentaires ","Semaine 3","Heures supplémentaires  ","Semaine 4","Heures supplémentaires   ","Semaine 5","Heures supplémentaires    "]
[null,"Lundi"]
[null,"Mardi"]
[null,"Mercredi"]
[null,"Jeudi"]
[null,"Vendredi"]
[null,"Samedi"]
[null,"Dimanche"]
[null,"Total des heures hebdomadaires",{"$f":"SUBTOTAL(109,Octobre[Semaine 1])","v":0},{"$f":"SUBTOTAL(109,Octobre[Heures supplémentaires])","v":0},{"$f":"SUBTOTAL(109,Octobre[Semaine 2])","v":0},{"$f":"SUBTOTAL(109,Octobre[[Heures supplémentaires ]])","v":0},{"$f":"SUBTOTAL(109,Octobre[Semaine 3])","v":0},{"$f":"SUBTOTAL(109,Octobre[[Heures supplémentaires  ]])","v":0},{"$f":"SUBTOTAL(109,Octobre[Semaine 4])","v":0},{"$f":"SUBTOTAL(109,Octobre[[Heures supplémentaires   ]])","v":0},{"$f":"SUBTOTAL(109,Octobre[Semaine 5])","v":0},{"$f":"SUBTOTAL(109,Octobre[[Heures supplémentaires    ]])","v":0}]
[null,"Total octobre : Heures normales",{"$f":"SUM(Octobre[[#Totals],[Semaine 1]],Octobre[[#Totals],[Semaine 2]],Octobre[[#Totals],[Semaine 3]],Octobre[[#Totals],[Semaine 4]],Octobre[[#Totals],[Semaine 5]])","v":0},"Total octobre : Heures supplémentaires",null,{"$f":"SUM(Octobre[[#Totals],[Heures supplémentaires]],Octobre[[#Totals],[Heures supplémentaires ]],Octobre[[#Totals],[Heures supplémentaires  ]],Octobre[[#Totals],[Heures supplémentaires   ]],Octobre[[#Totals],[Heures supplémentaires    ]])","v":0}]
[]
[null,"Novembre","Semaine 1","Heures supplémentaires","Semaine 2","Heures supplémentaires ","Semaine 3","Heures supplémentaires  ","Semaine 4","Heures supplémentaires   ","Semaine 5","Heures supplémentaires    "]
[null,"Lundi"]
[null,"Mardi"]
[null,"Mercredi"]
[null,"Jeudi"]
[null,"Vendredi"]
[null,"Samedi"]
[null,"Dimanche"]
[null,"Total des heures hebdomadaires",{"$f":"SUBTOTAL(109,Novembre[Semaine 1])","v":0},{"$f":"SUBTOTAL(109,Novembre[Heures supplémentaires])","v":0},{"$f":"SUBTOTAL(109,Novembre[Semaine 2])","v":0},{"$f":"SUBTOTAL(109,Novembre[[Heures supplémentaires ]])","v":0},{"$f":"SUBTOTAL(109,Novembre[Semaine 3])","v":0},{"$f":"SUBTOTAL(109,Novembre[[Heures supplémentaires  ]])","v":0},{"$f":"SUBTOTAL(109,Novembre[Semaine 4])","v":0},{"$f":"SUBTOTAL(109,Novembre[[Heures supplémentaires   ]])","v":0},{"$f":"SUBTOTAL(109,Novembre[Semaine 5])","v":0},{"$f":"SUBTOTAL(109,Novembre[[Heures supplémentaires    ]])","v":0}]
[null,"Total novembre : Heures normales",{"$f":"SUM(Novembre[[#Totals],[Semaine 1]],Novembre[[#Totals],[Semaine 2]],Novembre[[#Totals],[Semaine 3]],Novembre[[#Totals],[Semaine 4]],Novembre[[#Totals],[Semaine 5]])","v":0},"Total novembre : Heures supplémentaires",null,{"$f":"SUM(Novembre[[#Totals],[Heures supplémentaires]],Novembre[[#Totals],[Heures supplémentaires ]],Novembre[[#Totals],[Heures supplémentaires  ]],Novembre[[#Totals],[Heures supplémentaires   ]],Novembre[[#Totals],[Heures supplémentaires    ]])","v":0}]
[]
[null,"Décembre","Semaine 1","Heures supplémentaires","Semaine 2","Heures supplémentaires ","Semaine 3","Heures supplémentaires  ","Semaine 4","Heures supplémentaires   ","Semaine 5","Heures supplémentaires    "]
[null,"Lundi"]
[null,"Mardi"]
[null,"Mercredi"]
[null,"Jeudi"]
[null,"Vendredi"]
[null,"Samedi"]
[null,"Dimanche"]
[null,"Total des heures hebdomadaires",{"$f":"SUBTOTAL(109,Décembre[Semaine 1])","v":0},{"$f":"SUBTOTAL(109,Décembre[Heures supplémentaires])","v":0},{"$f":"SUBTOTAL(109,Décembre[Semaine 2])","v":0},{"$f":"SUBTOTAL(109,Décembre[[Heures supplémentaires ]])","v":0},{"$f":"SUBTOTAL(109,Décembre[Semaine 3])","v":0},{"$f":"SUBTOTAL(109,Décembre[[Heures supplémentaires  ]])","v":0},{"$f":"SUBTOTAL(109,Décembre[Semaine 4])","v":0},{"$f":"SUBTOTAL(109,Décembre[[Heures supplémentaires   ]])","v":0},{"$f":"SUBTOTAL(109,Décembre[Semaine 5])","v":0},{"$f":"SUBTOTAL(109,Décembre[[Heures supplémentaires    ]])","v":0}]
[null,"Total décembre : Heures normales",{"$f":"SUM(Décembre[[#Totals],[Semaine 1]],Décembre[[#Totals],[Semaine 2]],Décembre[[#Totals],[Semaine 3]],Décembre[[#Totals],[Semaine 4]],Décembre[[#Totals],[Semaine 5]])","v":0},"Total décembre : Heures supplémentaires",null,{"$f":"SUM(Décembre[[#Totals],[Heures supplémentaires]],Décembre[[#Totals],[Heures supplémentaires ]],Décembre[[#Totals],[Heures supplémentaires  ]],Décembre[[#Totals],[Heures supplémentaires   ]],Décembre[[#Totals],[Heures supplémentaires    ]])","v":0}]